[Event "Titled Tuesday Blitz November 14 Late 2023"]
[White "Gholami Orimi, Mahdi"]
[Black "Zeltsan, Joseph"]
[WhiteFideId "12558486"]
[BlackFideId "30932980"]
[WhiteElo "2949"]
[BlackElo "2716"]
[Result "0-1"]
[Round "6"]
[TimeControl "180+1"]
[Date "2023.11.14"]
[WhiteClock "0:00:02"]
[BlackClock "0:00:05"]
[Board "13"]

1. d4 {[%clk 0:02:55]}  Nf6 {[%clk 0:02:59]} 2. c4 {[%clk 0:02:54]}  e6 {[%clk 0:02:59]} 3. Nc3 {[%clk 0:02:55]}  d5 {[%clk 0:02:59]} 4. cxd5 {[%clk 0:02:54]}  exd5 {[%clk 0:03:00]} 5. Bg5 {[%clk 0:02:54]}  Be7 {[%clk 0:03:01]} 6. e3 {[%clk 0:02:54]}  O-O {[%clk 0:03:01]} 7. Bd3 {[%clk 0:02:54]}  Re8 {[%clk 0:03:02]} 8. Nge2 {[%clk 0:02:38]}  c6 {[%clk 0:02:56]} 9. Qc2 {[%clk 0:02:35]}  Nbd7 {[%clk 0:02:55]} 10. O-O {[%clk 0:02:34]}  Nf8 {[%clk 0:02:56]} 11. f3 {[%clk 0:02:34]}  Ng6 {[%clk 0:02:45]} 12. Rad1 {[%clk 0:02:33]}  Be6 {[%clk 0:02:41]} 13. Kh1 {[%clk 0:02:31]}  b5 {[%clk 0:02:37]} 14. e4 {[%clk 0:02:30]}  dxe4 {[%clk 0:02:27]} 15. fxe4 {[%clk 0:02:31]}  a6 {[%clk 0:02:10]} 16. Qc1 {[%clk 0:02:20]}  c5 {[%clk 0:02:01]} 17. dxc5 {[%clk 0:02:04]}  Ng4 {[%clk 0:01:45]} 18. Bxe7 {[%clk 0:01:59]}  Qxe7 {[%clk 0:01:46]} 19. b4 {[%clk 0:01:59]}  Qh4 {[%clk 0:01:45]} 20. h3 {[%clk 0:01:44]}  Nf2+ {[%clk 0:01:45]} 21. Rxf2 {[%clk 0:01:43]}  Qxf2 {[%clk 0:01:46]} 22. Nd5 {[%clk 0:01:35]}  Bxd5 {[%clk 0:01:40]} 23. exd5 {[%clk 0:01:33]}  Nh4 {[%clk 0:00:49]} 24. Nf4 {[%clk 0:01:31]}  Re3 {[%clk 0:00:49]} 25. Rf1 {[%clk 0:01:29]}  Qg3 {[%clk 0:00:48]} 26. Qc2 {[%clk 0:01:16]}  Rae8 {[%clk 0:00:31]} 27. d6 {[%clk 0:01:09]}  Re1 {[%clk 0:00:27]} 28. d7 {[%clk 0:01:07]}  Rd8 {[%clk 0:00:20]} 29. Nh5 {[%clk 0:00:53]}  Rxf1+ {[%clk 0:00:15]} 30. Bxf1 {[%clk 0:00:54]}  Qe1 {[%clk 0:00:15]} 31. Qd3 {[%clk 0:00:47]}  Rxd7 {[%clk 0:00:15]} 32. Qe2 {[%clk 0:00:41]}  Qxe2 {[%clk 0:00:11]} 33. Bxe2 {[%clk 0:00:42]}  Rd2 {[%clk 0:00:10]} 34. Ng3 {[%clk 0:00:39]}  Rxa2 {[%clk 0:00:10]} 35. Bg4 {[%clk 0:00:37]}  Rc2 {[%clk 0:00:09]} 36. Bc8 {[%clk 0:00:26]}  Nxg2 {[%clk 0:00:05]} 37. Bxa6 {[%clk 0:00:24]}  Nf4 {[%clk 0:00:06]} 38. Bxb5 {[%clk 0:00:21]}  Nd5 {[%clk 0:00:06]} 39. Bd3 {[%clk 0:00:17]}  Rc1+ {[%clk 0:00:06]} 40. Kg2 {[%clk 0:00:15]}  Nxb4 {[%clk 0:00:07]} 41. Be2 {[%clk 0:00:14]}  Rxc5 {[%clk 0:00:08]} 42. Ne4 {[%clk 0:00:14]}  Re5 {[%clk 0:00:08]} 43. Kf3 {[%clk 0:00:15]}  Nc6 {[%clk 0:00:07]} 44. Kf4 {[%clk 0:00:14]}  f6 {[%clk 0:00:07]} 45. Bc4+ {[%clk 0:00:13]}  Kf8 {[%clk 0:00:07]} 46. Ng3 {[%clk 0:00:13]}  g6 {[%clk 0:00:07]} 47. Bd3 {[%clk 0:00:13]}  Ke7 {[%clk 0:00:07]} 48. Ne4 {[%clk 0:00:12]}  Nd4 {[%clk 0:00:07]} 49. Nc3 {[%clk 0:00:11]}  Ne6+ {[%clk 0:00:08]} 50. Kf3 {[%clk 0:00:10]}  Ra5 {[%clk 0:00:08]} 51. Ke4 {[%clk 0:00:03]}  f5+ {[%clk 0:00:08]} 52. Ke3 {[%clk 0:00:03]}  Kf6 {[%clk 0:00:08]} 53. Kf2 {[%clk 0:00:03]}  Ke5 {[%clk 0:00:08]} 54. Ne2 {[%clk 0:00:03]}  Ra3 {[%clk 0:00:08]} 55. Bc4 {[%clk 0:00:03]}  Rc3 {[%clk 0:00:08]} 56. Bxe6 {[%clk 0:00:03]}  Rc2 {[%clk 0:00:06]} 57. Bg8 {[%clk 0:00:02]}  h6 {[%clk 0:00:06]} 58. Ke3 {[%clk 0:00:02]}  g5 {[%clk 0:00:06]} 59. Bh7 {[%clk 0:00:03]}  f4+ {[%clk 0:00:05]} 60. Kf3 {[%clk 0:00:03]}  Rb2 {[%clk 0:00:04]} 61. Kf2 {[%clk 0:00:04]}  Rb3 {[%clk 0:00:04]} 62. Ng1 {[%clk 0:00:04]}  Rb2+ {[%clk 0:00:03]} 63. Kf1 {[%clk 0:00:04]}  h5 {[%clk 0:00:04]} 64. Nf3+ {[%clk 0:00:04]}  Kf6 {[%clk 0:00:03]} 65. Nd4 {[%clk 0:00:03]}  g4 {[%clk 0:00:03]} 66. hxg4 {[%clk 0:00:04]}  hxg4 {[%clk 0:00:04]} 67. Bd3 {[%clk 0:00:02]}  Rd2 {[%clk 0:00:03]} 68. Ne2 {[%clk 0:00:01]}  Rxd3 {[%clk 0:00:03]} 69. Nxf4 {[%clk 0:00:01]}  Rf3+ {[%clk 0:00:03]} 70. Kg2 {[%clk 0:00:02]}  Rxf4 {[%clk 0:00:04]} 71. Kg3 {[%clk 0:00:02]}  Kg5 {[%clk 0:00:05]} 0-1


[Site "https://www.chess.com"]

[Event "Titled Tuesday Blitz November 14 Late 2023"]
[White "Bortnyk, Mykola"]
[Black "Hasangatin, Ramil"]
[WhiteFideId "14120836"]
[BlackFideId "4122160"]
[WhiteElo "2938"]
[BlackElo "2700"]
[Result "0-1"]
[Round "6"]
[TimeControl "180+1"]
[Date "2023.11.14"]
[WhiteClock "0:00:00"]
[BlackClock "0:00:10"]
[Board "15"]

1. e4 {[%clk 0:03:00]}  d5 {[%clk 0:03:00]} 2. exd5 {[%clk 0:02:59]}  Qxd5 {[%clk 0:03:01]} 3. Nc3 {[%clk 0:02:59]}  Qd6 {[%clk 0:03:01]} 4. g3 {[%clk 0:02:55]}  Nf6 {[%clk 0:03:01]} 5. Bg2 {[%clk 0:02:55]}  c6 {[%clk 0:03:02]} 6. Nge2 {[%clk 0:02:55]}  Bf5 {[%clk 0:03:00]} 7. d3 {[%clk 0:02:55]}  e6 {[%clk 0:03:00]} 8. O-O {[%clk 0:02:55]}  h6 {[%clk 0:03:00]} 9. b4 {[%clk 0:02:52]}  Qc7 {[%clk 0:02:54]} 10. Rb1 {[%clk 0:02:49]}  Bd6 {[%clk 0:02:54]} 11. Nd4 {[%clk 0:02:42]}  Bg4 {[%clk 0:02:50]} 12. Qd2 {[%clk 0:02:37]}  O-O {[%clk 0:02:49]} 13. a4 {[%clk 0:02:31]}  Nbd7 {[%clk 0:02:48]} 14. b5 {[%clk 0:01:58]}  c5 {[%clk 0:02:47]} 15. b6 {[%clk 0:01:55]}  axb6 {[%clk 0:02:33]} 16. Ndb5 {[%clk 0:01:54]}  Qb8 {[%clk 0:02:33]} 17. Nxd6 {[%clk 0:01:53]}  Qxd6 {[%clk 0:02:33]} 18. Bxb7 {[%clk 0:01:53]}  Rad8 {[%clk 0:02:30]} 19. Bg2 {[%clk 0:01:49]}  Ne5 {[%clk 0:02:15]} 20. f3 {[%clk 0:01:45]}  Bf5 {[%clk 0:02:12]} 21. Qe3 {[%clk 0:01:38]}  Nfd7 {[%clk 0:02:05]} 22. Ne4 {[%clk 0:01:30]}  Qd4 {[%clk 0:01:56]} 23. Qxd4 {[%clk 0:01:27]}  cxd4 {[%clk 0:01:56]} 24. Ba3 {[%clk 0:01:25]}  Bxe4 {[%clk 0:01:47]} 25. Bxf8 {[%clk 0:01:24]}  Bc6 {[%clk 0:01:47]} 26. Be7 {[%clk 0:01:17]}  Re8 {[%clk 0:01:47]} 27. Bd6 {[%clk 0:01:17]}  Bxa4 {[%clk 0:01:47]} 28. Rf2 {[%clk 0:00:59]}  Rc8 {[%clk 0:01:45]} 29. Rb2 {[%clk 0:00:57]}  b5 {[%clk 0:01:42]} 30. h3 {[%clk 0:00:55]}  f6 {[%clk 0:01:32]} 31. f4 {[%clk 0:00:54]}  Nf7 {[%clk 0:01:32]} 32. Bb4 {[%clk 0:00:54]}  Nd8 {[%clk 0:01:11]} 33. Re2 {[%clk 0:00:50]}  Kf7 {[%clk 0:01:08]} 34. h4 {[%clk 0:00:43]}  Nc6 {[%clk 0:01:07]} 35. Bd6 {[%clk 0:00:37]}  Ne7 {[%clk 0:00:59]} 36. Bxe7 {[%clk 0:00:28]}  Kxe7 {[%clk 0:00:59]} 37. Bh3 {[%clk 0:00:29]}  Rc6 {[%clk 0:00:58]} 38. Kf2 {[%clk 0:00:27]}  Nc5 {[%clk 0:00:48]} 39. Ke1 {[%clk 0:00:18]}  Kd6 {[%clk 0:00:44]} 40. Rb4 {[%clk 0:00:16]}  e5 {[%clk 0:00:44]} 41. fxe5+ {[%clk 0:00:17]}  fxe5 {[%clk 0:00:45]} 42. Bf5 {[%clk 0:00:17]}  Na6 {[%clk 0:00:41]} 43. Rb2 {[%clk 0:00:18]}  Rc3 {[%clk 0:00:37]} 44. g4 {[%clk 0:00:18]}  Nc7 {[%clk 0:00:31]} 45. Be4 {[%clk 0:00:18]}  Ne6 {[%clk 0:00:30]} 46. Rf2 {[%clk 0:00:18]}  Nf4 {[%clk 0:00:30]} 47. Kd2 {[%clk 0:00:18]}  Ra3 {[%clk 0:00:24]} 48. Kc1 {[%clk 0:00:12]}  Ra1+ {[%clk 0:00:23]} 49. Rb1 {[%clk 0:00:13]}  Ra2 {[%clk 0:00:24]} 50. g5 {[%clk 0:00:14]}  hxg5 {[%clk 0:00:23]} 51. hxg5 {[%clk 0:00:15]}  g6 {[%clk 0:00:24]} 52. Rh2 {[%clk 0:00:14]}  Kc5 {[%clk 0:00:23]} 53. Rb2 {[%clk 0:00:08]}  Ra1+ {[%clk 0:00:23]} 54. Kd2 {[%clk 0:00:09]}  Rg1 {[%clk 0:00:22]} 55. Rh8 {[%clk 0:00:06]}  Rxg5 {[%clk 0:00:21]} 56. Rc8+ {[%clk 0:00:07]}  Kd6 {[%clk 0:00:20]} 57. Rc6+ {[%clk 0:00:07]}  Ke7 {[%clk 0:00:20]} 58. Ke1 {[%clk 0:00:06]}  Rg1+ {[%clk 0:00:16]} 59. Kf2 {[%clk 0:00:07]}  Rd1 {[%clk 0:00:16]} 60. Kf3 {[%clk 0:00:06]}  Rf1+ {[%clk 0:00:14]} 61. Kg3 {[%clk 0:00:06]}  Rg1+ {[%clk 0:00:13]} 62. Kf2 {[%clk 0:00:02]}  Rd1 {[%clk 0:00:13]} 63. Ra6 {[%clk 0:00:03]}  Kf7 {[%clk 0:00:11]} 64. Kf3 {[%clk 0:00:02]}  Rf1+ {[%clk 0:00:10]} 65. Kg3 {[%clk 0:00:03]}  Rg1+ {[%clk 0:00:10]} 66. Kf2 {[%clk 0:00:03]}  Rd1 {[%clk 0:00:10]} 67. Bf3 {[%clk 0:00:04]}  Rd2+ {[%clk 0:00:09]} 68. Kg3 {[%clk 0:00:05]}  Rxc2 {[%clk 0:00:09]} 69. Rxc2 {[%clk 0:00:05]}  Bxc2 {[%clk 0:00:10]} 70. Rb6 {[%clk 0:00:04]}  Bxd3 {[%clk 0:00:10]} 71. Bg4 {[%clk 0:00:05]}  Bc4 {[%clk 0:00:09]} 72. Bd7 {[%clk 0:00:06]}  d3 {[%clk 0:00:09]} 73. Bxb5 {[%clk 0:00:04]}  Bxb5 {[%clk 0:00:09]} 74. Rxb5 {[%clk 0:00:05]}  d2 {[%clk 0:00:09]} 75. Rb1 {[%clk 0:00:06]}  Ne2+ {[%clk 0:00:09]} 76. Kf2 {[%clk 0:00:06]}  Nc3 {[%clk 0:00:10]} 77. Rb7+ {[%clk 0:00:05]}  Kf6 {[%clk 0:00:10]} 78. Ke3 {[%clk 0:00:04]}  d1=Q {[%clk 0:00:09]} 79. Rb4 {[%clk 0:00:02]}  Qd4+ {[%clk 0:00:09]} 80. Rxd4 {[%clk 0:00:02]}  exd4+ {[%clk 0:00:10]} 81. Kxd4 {[%clk 0:00:02]}  Kf5 {[%clk 0:00:10]} 82. Ke3 {[%clk 0:00:00]}  Kg4 {[%clk 0:00:10]} 0-1


[Site "https://www.chess.com"]

[Event "Titled Tuesday Blitz November 14 Late 2023"]
[White "Yeletsky, Ivan"]
[Black "Gimenez Aguirre, Alejo Ismael"]
[WhiteFideId "24180327"]
[BlackFideId "32041667"]
[WhiteElo "2911"]
[BlackElo "2605"]
[Result "0-1"]
[Round "6"]
[TimeControl "180+1"]
[Date "2023.11.14"]
[WhiteClock "0:00:04"]
[BlackClock "0:00:54"]
[Board "17"]

1. e4 {[%clk 0:03:00]}  c5 {[%clk 0:02:59]} 2. a4 {[%clk 0:03:00]}  g6 {[%clk 0:02:59]} 3. h4 {[%clk 0:03:00]}  h5 {[%clk 0:02:58]} 4. Ra3 {[%clk 0:02:59]}  Nc6 {[%clk 0:02:57]} 5. Bb5 {[%clk 0:02:59]}  Nd4 {[%clk 0:02:57]} 6. Rg3 {[%clk 0:02:57]}  a6 {[%clk 0:02:56]} 7. Bc4 {[%clk 0:02:57]}  e6 {[%clk 0:02:54]} 8. Nc3 {[%clk 0:02:56]}  Bd6 {[%clk 0:02:52]} 9. Re3 {[%clk 0:02:47]}  Nh6 {[%clk 0:02:46]} 10. Nf3 {[%clk 0:02:20]}  Ng4 {[%clk 0:02:42]} 11. Rd3 {[%clk 0:02:04]}  Qf6 {[%clk 0:02:31]} 12. Ne2 {[%clk 0:01:42]}  b5 {[%clk 0:02:19]} 13. Ba2 {[%clk 0:01:40]}  bxa4 {[%clk 0:02:13]} 14. Nexd4 {[%clk 0:01:22]}  cxd4 {[%clk 0:02:12]} 15. c3 {[%clk 0:01:11]}  Bb7 {[%clk 0:02:12]} 16. Rxd4 {[%clk 0:01:10]}  Bc5 {[%clk 0:02:12]} 17. O-O {[%clk 0:01:06]}  Bxd4 {[%clk 0:02:11]} 18. cxd4 {[%clk 0:01:05]}  Bxe4 {[%clk 0:02:11]} 19. Ng5 {[%clk 0:01:03]}  Bb7 {[%clk 0:02:08]} 20. Qxa4 {[%clk 0:00:53]}  Bc6 {[%clk 0:02:06]} 21. Qb4 {[%clk 0:00:47]}  Nh6 {[%clk 0:01:47]} 22. d5 {[%clk 0:00:46]}  exd5 {[%clk 0:01:40]} 23. Re1+ {[%clk 0:00:46]}  Kd8 {[%clk 0:01:39]} 24. d4 {[%clk 0:00:41]}  Kc8 {[%clk 0:01:31]} 25. g3 {[%clk 0:00:26]}  a5 {[%clk 0:01:29]} 26. Qc5 {[%clk 0:00:22]}  Nf5 {[%clk 0:01:20]} 27. Re5 {[%clk 0:00:18]}  Qd6 {[%clk 0:01:07]} 28. Qc3 {[%clk 0:00:18]}  f6 {[%clk 0:01:04]} 29. Rxd5 {[%clk 0:00:16]}  Qb4 {[%clk 0:01:00]} 30. Rc5 {[%clk 0:00:15]}  Nxd4 {[%clk 0:00:54]} 31. Kh2 {[%clk 0:00:04]}  fxg5 {[%clk 0:00:54]} 32. Bxg5 {[%clk 0:00:03]}  Qxc3 {[%clk 0:00:53]} 33. bxc3 {[%clk 0:00:04]}  Nf3+ {[%clk 0:00:53]} 34. Kh3 {[%clk 0:00:04]}  Nxg5+ {[%clk 0:00:54]} 35. hxg5 {[%clk 0:00:04]}  a4 {[%clk 0:00:54]} 0-1


[Site "https://www.chess.com"]

[Event "Titled Tuesday Blitz November 14 Late 2023"]
[White "Zhigalko, Sergei"]
[Black "OPQRC"]
[WhiteFideId "13502956"]
[WhiteElo "2899"]
[BlackElo "2601"]
[Result "1-0"]
[Round "6"]
[TimeControl "180+1"]
[Date "2023.11.14"]
[WhiteClock "0:00:04"]
[BlackClock "0:00:04"]
[Board "18"]

1. e4 {[%clk 0:03:00]}  c5 {[%clk 0:02:59]} 2. Nf3 {[%clk 0:02:59]}  d6 {[%clk 0:03:00]} 3. d4 {[%clk 0:02:58]}  cxd4 {[%clk 0:03:01]} 4. Qxd4 {[%clk 0:02:58]}  Bd7 {[%clk 0:02:57]} 5. Bc4 {[%clk 0:02:58]}  Nc6 {[%clk 0:02:53]} 6. Qd3 {[%clk 0:02:58]}  Nf6 {[%clk 0:02:48]} 7. Nc3 {[%clk 0:02:57]}  e6 {[%clk 0:02:48]} 8. Bf4 {[%clk 0:02:57]}  e5 {[%clk 0:02:47]} 9. Bg5 {[%clk 0:02:57]}  Be7 {[%clk 0:02:41]} 10. Bxf6 {[%clk 0:02:57]}  Bxf6 {[%clk 0:02:41]} 11. Qxd6 {[%clk 0:02:55]}  Be7 {[%clk 0:02:38]} 12. Qd5 {[%clk 0:02:34]}  O-O {[%clk 0:02:35]} 13. Nxe5 {[%clk 0:02:22]}  Nxe5 {[%clk 0:02:28]} 14. Qxe5 {[%clk 0:02:22]}  Bf6 {[%clk 0:02:28]} 15. Qg3 {[%clk 0:02:19]}  Rc8 {[%clk 0:02:24]} 16. Bb3 {[%clk 0:02:11]}  Bxc3+ {[%clk 0:02:13]} 17. bxc3 {[%clk 0:02:12]}  Bb5 {[%clk 0:02:14]} 18. Qe3 {[%clk 0:01:45]}  Qa5 {[%clk 0:02:11]} 19. O-O-O {[%clk 0:01:39]}  Rxc3 {[%clk 0:02:08]} 20. Qd4 {[%clk 0:01:38]}  Qa3+ {[%clk 0:01:40]} 21. Kb1 {[%clk 0:01:37]}  Rfc8 {[%clk 0:01:40]} 22. Qxc3 {[%clk 0:01:21]}  Rxc3 {[%clk 0:01:37]} 23. Rd8+ {[%clk 0:01:20]}  Qf8 {[%clk 0:01:38]} 24. Rxf8+ {[%clk 0:01:20]}  Kxf8 {[%clk 0:01:39]} 25. Rd1 {[%clk 0:01:14]}  Bc6 {[%clk 0:01:27]} 26. Kb2 {[%clk 0:01:02]}  Rc5 {[%clk 0:01:25]} 27. f3 {[%clk 0:01:00]}  Ke7 {[%clk 0:01:24]} 28. Bd5 {[%clk 0:00:34]}  Rb5+ {[%clk 0:00:52]} 29. Kc3 {[%clk 0:00:32]}  Rc5+ {[%clk 0:00:44]} 30. Kb2 {[%clk 0:00:10]}  Rb5+ {[%clk 0:00:44]} 31. Bb3 {[%clk 0:00:06]}  h5 {[%clk 0:00:33]} 32. h4 {[%clk 0:00:05]}  f6 {[%clk 0:00:28]} 33. Kc3 {[%clk 0:00:04]}  g5 {[%clk 0:00:21]} 34. Rh1 {[%clk 0:00:04]}  g4 {[%clk 0:00:20]} 35. Kd4 {[%clk 0:00:04]}  Rb4+ {[%clk 0:00:15]} 36. Ke3 {[%clk 0:00:04]}  a5 {[%clk 0:00:13]} 37. a3 {[%clk 0:00:02]}  Rb6 {[%clk 0:00:11]} 38. fxg4 {[%clk 0:00:02]}  hxg4 {[%clk 0:00:09]} 39. h5 {[%clk 0:00:03]}  a4 {[%clk 0:00:09]} 40. Bd5 {[%clk 0:00:03]}  Bxd5 {[%clk 0:00:09]} 41. exd5 {[%clk 0:00:04]}  Kf7 {[%clk 0:00:06]} 42. h6 {[%clk 0:00:02]}  Kg8 {[%clk 0:00:06]} 43. h7+ {[%clk 0:00:02]}  Kh8 {[%clk 0:00:07]} 44. c4 {[%clk 0:00:02]}  Rb3+ {[%clk 0:00:07]} 45. Ke4 {[%clk 0:00:02]}  Rxa3 {[%clk 0:00:07]} 46. d6 {[%clk 0:00:03]}  Ra2 {[%clk 0:00:05]} 47. Rd1 {[%clk 0:00:03]}  Re2+ {[%clk 0:00:04]} 48. Kf5 {[%clk 0:00:03]}  Re8 {[%clk 0:00:05]} 49. d7 {[%clk 0:00:04]}  Rd8 {[%clk 0:00:05]} 50. Kxf6 {[%clk 0:00:04]}  Kxh7 {[%clk 0:00:04]} 51. Ke7 {[%clk 0:00:04]} 1-0


[Site "https://www.chess.com"]

[Event "Titled Tuesday Blitz November 14 Late 2023"]
[White "Omelja, Artem"]
[Black "Eljanov, Pavel"]
[WhiteFideId "14119846"]
[BlackFideId "14102951"]
[WhiteElo "2601"]
[BlackElo "2880"]
[Result "0-1"]
[Round "6"]
[TimeControl "180+1"]
[Date "2023.11.14"]
[WhiteClock "0:00:12"]
[BlackClock "0:01:20"]
[Board "19"]

1. d4 {[%clk 0:03:00]}  Nf6 {[%clk 0:02:59]} 2. c4 {[%clk 0:03:00]}  e6 {[%clk 0:02:59]} 3. Nc3 {[%clk 0:03:00]}  d5 {[%clk 0:03:00]} 4. cxd5 {[%clk 0:02:59]}  exd5 {[%clk 0:03:01]} 5. Bg5 {[%clk 0:02:57]}  Be7 {[%clk 0:02:59]} 6. e3 {[%clk 0:02:56]}  h6 {[%clk 0:03:00]} 7. Bh4 {[%clk 0:02:55]}  Bg4 {[%clk 0:03:00]} 8. Nf3 {[%clk 0:02:44]}  c6 {[%clk 0:02:56]} 9. Qc2 {[%clk 0:02:40]}  Nbd7 {[%clk 0:02:54]} 10. Bd3 {[%clk 0:02:28]}  O-O {[%clk 0:02:53]} 11. h3 {[%clk 0:02:25]}  Bxf3 {[%clk 0:02:52]} 12. gxf3 {[%clk 0:02:26]}  Nh5 {[%clk 0:02:53]} 13. Bxe7 {[%clk 0:02:24]}  Qxe7 {[%clk 0:02:53]} 14. O-O-O {[%clk 0:02:24]}  a5 {[%clk 0:02:52]} 15. Rhg1 {[%clk 0:02:14]}  a4 {[%clk 0:02:41]} 16. a3 {[%clk 0:02:10]}  Rfc8 {[%clk 0:02:29]} 17. Kb1 {[%clk 0:02:02]}  b5 {[%clk 0:02:27]} 18. Na2 {[%clk 0:02:01]}  Nb6 {[%clk 0:02:27]} 19. Nb4 {[%clk 0:01:55]}  Nc4 {[%clk 0:02:26]} 20. Rg2 {[%clk 0:01:28]}  Kh8 {[%clk 0:02:18]} 21. Rdg1 {[%clk 0:01:23]}  Rc7 {[%clk 0:02:15]} 22. f4 {[%clk 0:01:17]}  Rg8 {[%clk 0:02:08]} 23. Bh7 {[%clk 0:01:15]}  Re8 {[%clk 0:02:06]} 24. Bd3 {[%clk 0:01:10]}  Qh4 {[%clk 0:01:42]} 25. Be2 {[%clk 0:00:58]}  Rg8 {[%clk 0:01:37]} 26. Qf5 {[%clk 0:00:53]}  Nf6 {[%clk 0:01:33]} 27. Bd3 {[%clk 0:00:43]}  g6 {[%clk 0:01:28]} 28. Rxg6 {[%clk 0:00:25]}  Rxg6 {[%clk 0:01:28]} 29. Rxg6 {[%clk 0:00:23]}  fxg6 {[%clk 0:01:29]} 30. Qxg6 {[%clk 0:00:24]}  Rg7 {[%clk 0:01:22]} 31. Qf5 {[%clk 0:00:24]}  Ng8 {[%clk 0:01:23]} 32. Nxc6 {[%clk 0:00:22]}  Qxf2 {[%clk 0:01:23]} 33. Bc2 {[%clk 0:00:12]}  Nxe3 {[%clk 0:01:20]} 0-1


[Site "https://www.chess.com"]

[Event "Titled Tuesday Blitz November 14 Late 2023"]
[White "Papasimakopoulos, Alexandros"]
[Black "Makarian, Rudik"]
[WhiteFideId "4244125"]
[BlackFideId "44105681"]
[WhiteElo "2634"]
[BlackElo "2954"]
[Result "0-1"]
[Round "6"]
[TimeControl "180+1"]
[Date "2023.11.14"]
[WhiteClock "0:00:45"]
[BlackClock "0:00:20"]
[Board "26"]

1. d4 {[%clk 0:03:00]}  Nf6 {[%clk 0:03:00]} 2. c4 {[%clk 0:03:00]}  g6 {[%clk 0:02:58]} 3. Nc3 {[%clk 0:03:01]}  d6 {[%clk 0:02:58]} 4. Bg5 {[%clk 0:03:01]}  Bg7 {[%clk 0:02:58]} 5. e3 {[%clk 0:03:01]}  h6 {[%clk 0:02:57]} 6. Bh4 {[%clk 0:03:01]}  O-O {[%clk 0:02:58]} 7. Be2 {[%clk 0:03:00]}  c5 {[%clk 0:02:58]} 8. Nf3 {[%clk 0:02:58]}  Nc6 {[%clk 0:02:59]} 9. O-O {[%clk 0:02:54]}  Bf5 {[%clk 0:02:57]} 10. d5 {[%clk 0:02:50]}  Na5 {[%clk 0:02:53]} 11. Nd2 {[%clk 0:02:50]}  e5 {[%clk 0:02:50]} 12. dxe6 {[%clk 0:02:43]}  Bxe6 {[%clk 0:02:49]} 13. Rc1 {[%clk 0:02:40]}  g5 {[%clk 0:02:37]} 14. Bg3 {[%clk 0:02:39]}  d5 {[%clk 0:02:38]} 15. Nb5 {[%clk 0:02:16]}  Ne8 {[%clk 0:01:53]} 16. cxd5 {[%clk 0:02:08]}  Qxd5 {[%clk 0:01:50]} 17. b3 {[%clk 0:02:04]}  Rd8 {[%clk 0:01:47]} 18. Nc4 {[%clk 0:01:59]}  Qxd1 {[%clk 0:01:39]} 19. Rfxd1 {[%clk 0:01:58]}  Rxd1+ {[%clk 0:01:39]} 20. Rxd1 {[%clk 0:01:59]}  Nxc4 {[%clk 0:01:36]} 21. Bxc4 {[%clk 0:01:58]}  Bxc4 {[%clk 0:01:29]} 22. bxc4 {[%clk 0:01:59]}  a6 {[%clk 0:01:29]} 23. Nd6 {[%clk 0:01:57]}  Nxd6 {[%clk 0:01:25]} 24. Rxd6 {[%clk 0:01:58]}  b5 {[%clk 0:01:14]} 25. Rxa6 {[%clk 0:01:51]}  bxc4 {[%clk 0:01:14]} 26. Kf1 {[%clk 0:01:49]}  c3 {[%clk 0:01:07]} 27. Rc6 {[%clk 0:01:44]}  Ra8 {[%clk 0:01:05]} 28. Rxc5 {[%clk 0:01:41]}  Rxa2 {[%clk 0:01:05]} 29. h4 {[%clk 0:01:33]}  Kh7 {[%clk 0:00:32]} 30. hxg5 {[%clk 0:01:26]}  c2 {[%clk 0:00:27]} 31. Bf4 {[%clk 0:00:56]}  Ra1+ {[%clk 0:00:25]} 32. Ke2 {[%clk 0:00:55]}  c1=Q {[%clk 0:00:26]} 33. Rxc1 {[%clk 0:00:56]}  Rxc1 {[%clk 0:00:26]} 34. e4 {[%clk 0:00:55]}  Rc2+ {[%clk 0:00:25]} 35. Kf3 {[%clk 0:00:55]}  Bd4 {[%clk 0:00:23]} 36. gxh6 {[%clk 0:00:55]}  Rxf2+ {[%clk 0:00:23]} 37. Kg3 {[%clk 0:00:56]}  Ra2 {[%clk 0:00:23]} 38. Kf3 {[%clk 0:00:54]}  Ra3+ {[%clk 0:00:23]} 39. Kg4 {[%clk 0:00:54]}  Kg6 {[%clk 0:00:23]} 40. g3 {[%clk 0:00:52]}  Rb3 {[%clk 0:00:21]} 41. Bd2 {[%clk 0:00:52]}  Be3 {[%clk 0:00:20]} 42. Be1 {[%clk 0:00:45]}  Bxh6 {[%clk 0:00:20]} 0-1


[Site "https://www.chess.com"]

[Event "Titled Tuesday Blitz November 14 Late 2023"]
[White "Guerra Tulcan, Lenin"]
[Black "Rustemov, Alexander"]
[WhiteFideId "3601382"]
[BlackFideId "4119002"]
[WhiteElo "2609"]
[BlackElo "2859"]
[Result "0-1"]
[Round "6"]
[TimeControl "180+1"]
[Date "2023.11.14"]
[WhiteClock "0:00:01"]
[BlackClock "0:01:30"]
[Board "29"]

1. e4 {[%clk 0:03:00]}  e6 {[%clk 0:02:59]} 2. d4 {[%clk 0:02:59]}  d5 {[%clk 0:03:00]} 3. Nd2 {[%clk 0:03:00]}  dxe4 {[%clk 0:03:00]} 4. Nxe4 {[%clk 0:03:00]}  Bd7 {[%clk 0:03:00]} 5. Nf3 {[%clk 0:02:59]}  Bc6 {[%clk 0:03:01]} 6. Bd3 {[%clk 0:02:59]}  Nd7 {[%clk 0:03:01]} 7. O-O {[%clk 0:02:58]}  Ngf6 {[%clk 0:03:02]} 8. Bg5 {[%clk 0:02:57]}  Be7 {[%clk 0:03:01]} 9. Nxf6+ {[%clk 0:02:43]}  Bxf6 {[%clk 0:03:01]} 10. Bxf6 {[%clk 0:02:43]}  Qxf6 {[%clk 0:03:02]} 11. c3 {[%clk 0:02:37]}  Bxf3 {[%clk 0:03:02]} 12. Qxf3 {[%clk 0:02:38]}  Qxf3 {[%clk 0:03:02]} 13. gxf3 {[%clk 0:02:39]}  Nf6 {[%clk 0:02:59]} 14. Rfe1 {[%clk 0:02:32]}  O-O-O {[%clk 0:02:56]} 15. Re5 {[%clk 0:02:31]}  Nd5 {[%clk 0:02:49]} 16. Rae1 {[%clk 0:02:26]}  Nf4 {[%clk 0:02:46]} 17. Bc4 {[%clk 0:02:24]}  h6 {[%clk 0:02:44]} 18. h4 {[%clk 0:01:56]}  g5 {[%clk 0:02:44]} 19. R5e4 {[%clk 0:01:37]}  Rdg8 {[%clk 0:02:32]} 20. Kf1 {[%clk 0:01:11]}  c6 {[%clk 0:02:29]} 21. a4 {[%clk 0:01:09]}  Kc7 {[%clk 0:02:28]} 22. Rd1 {[%clk 0:01:01]}  Ng6 {[%clk 0:02:19]} 23. hxg5 {[%clk 0:00:55]}  hxg5 {[%clk 0:02:20]} 24. Rg4 {[%clk 0:00:42]}  Nf4 {[%clk 0:02:18]} 25. Ke1 {[%clk 0:00:32]}  Rh2 {[%clk 0:02:15]} 26. b4 {[%clk 0:00:18]}  Kd6 {[%clk 0:02:13]} 27. Bb3 {[%clk 0:00:13]}  Rh3 {[%clk 0:02:02]} 28. Rg3 {[%clk 0:00:10]}  Rh2 {[%clk 0:01:44]} 29. c4 {[%clk 0:00:10]}  f6 {[%clk 0:01:39]} 30. c5+ {[%clk 0:00:05]}  Ke7 {[%clk 0:01:38]} 31. Kd2 {[%clk 0:00:04]}  Rxf2+ {[%clk 0:01:38]} 32. Ke1 {[%clk 0:00:03]}  Rb2 {[%clk 0:01:30]} 33. Bc4 {[%clk 0:00:01]}  Rh8 {[%clk 0:01:30]} 0-1


[Site "https://www.chess.com"]